fUSD/lending_fUSD_20250125
["ID","MTS","AMOUNT","RATE_DAILY","PERIOD"]
[350339541,1737803439474,-500.0,0.00019136,2]
[350339542,1737803439483,-500.0,0.00019136,2]
[350339543,1737803439494,-500.0,0.00019136,2]
[350339544,1737803439504,-500.0,0.00019136,2]
[350339545,1737803439513,-306.49481167,0.00019136,2]
[350339546,1737803439523,-500.0,0.00019136,2]
[350339547,1737803439532,-500.0,0.00019136,2]
[350339548,1737803439542,-500.0,0.00019136,2]
[350339549,1737803439551,-500.0,0.00019136,2]
[350339550,1737803439562,-500.0,0.00019136,2]
[350339551,1737803439571,-500.0,0.00019136,2]
[350339552,1737803439581,-500.0,0.00019136,2]
[350339553,1737803439591,-500.0,0.00019136,2]
[350339554,1737803439600,-500.0,0.00019136,2]
[350339555,1737803439610,-500.0,0.00019136,2]
[350339556,1737803439623,-500.0,0.00019136,2]
[350339557,1737803439632,-500.0,0.00019136,2]
[350339558,1737803439641,-692.48,0.00019136,2]
[350339559,1737803439650,-182.23999928,0.00019136,2]
[350339560,1737803439659,-521.69,0.00019136,2]
[350339561,1737803439671,-500.0,0.00019136,2]
[350339562,1737803439680,-500.0,0.00019136,2]
[350339563,1737803439690,-500.0,0.00019136,2]
[350339564,1737803439701,-500.0,0.00019136,2]
[350339565,1737803439710,-500.0,0.00019136,2]
[350339566,1737803439719,-500.0,0.00019136,2]
[350339567,1737803439728,-89.98868292,0.00019136,2]
[350339568,1737803439767,-410.01131708,0.00019136,2]
[350339569,1737803439778,-500.0,0.00019136,2]
[350339570,1737803439788,-109.88868292,0.00019136,2]
[350339571,1737803439807,-390.11131708,0.00019136,2]
[350339572,1737803439817,-475.11432698,0.00019136,2]
[350339573,1737803439828,-35.76567302,0.00019136,2]
[350339574,1737803439838,-500.0,0.00019136,2]
[350339575,1737803439847,-500.0,0.00019136,2]
[350339576,1737803439857,-500.0,0.00019136,2]
[350339577,1737803439867,-741.55,0.00019136,2]
[350339578,1737803439877,-367.38,0.00019136,2]
[350339579,1737803439886,-500.0,0.00019136,2]
[350339580,1737803439896,-1749.4270672,0.0001919,2]
[350339581,1737803439909,-277.2649328,0.0001919,2]
[350339583,1737803439919,-1355.081,0.0001919,2]
[350339584,1737803439930,-569.255,0.0001919,2]
[350339585,1737803439939,-702.493,0.0001919,2]
[350339586,1737803439949,-150.914,0.0001919,2]
[350339587,1737803439959,-1865.0,0.0001919,2]
[350339588,1737803439968,-2959.648,0.0001919,2]
[350339589,1737803439979,-1267.152,0.0001919,2]
[350339590,1737803439988,-862.0,0.0001919,2]
[350339591,1737803439998,-916.305,0.0001919,2]
[350339592,1737803440008,-541.061,0.0001919,2]
[350339593,1737803440017,-150.0,0.0001919,2]
[350339594,1737803440027,-4015.645,0.0001919,2]
[350339596,1737803440035,-1055.28249228,0.0001921,2]
[350339598,1737803440045,-500.0,0.00019243,2]
[350339599,1737803440054,-500.0,0.00019243,2]
[350339600,1737803440064,-500.0,0.00019243,2]
[350339601,1737803440073,-500.0,0.00019243,2]
[350339602,1737803440082,-500.0,0.00019243,2]
[350339603,1737803440091,-500.0,0.00019243,2]
[350339604,1737803440100,-500.0,0.00019243,2]
[350339605,1737803440110,-262.89857492,0.00019243,2]
[350339606,1737803440122,-237.10142508,0.00019243,2]
[350339607,1737803440132,-246.03,0.00019243,2]
[350339608,1737803440142,-500.0,0.00019243,2]
[350339609,1737803440151,-500.0,0.00019243,2]
[350339610,1737803440160,-500.0,0.00019243,2]
[350339611,1737803440175,-84.08836058,0.00019243,2]
[350339612,1737803440246,-474.17163942,0.00019243,2]
[350339613,1737803440257,-64.15001868,0.00019243,2]
[350339614,1737803440413,-435.84998132,0.00019243,2]
[350339615,1737803440423,-500.0,0.00019243,2]
[350339616,1737803440434,-552.92,0.00019243,2]
[350339617,1737803440443,-500.0,0.00019243,2]
[350339618,1737803440454,-500.0,0.00019243,2]
[350339619,1737803440464,-500.0,0.00019243,2]
[350339620,1737803440474,-500.0,0.00019243,2]
[350339621,1737803440483,-171.74,0.00019243,2]
[350339622,1737803440493,-500.0,0.00019243,2]
[350339623,1737803440503,-215.24552692,0.00019243,2]
[350339624,1737803440512,-500.0,0.00019243,2]
[350339625,1737803440522,-601.64,0.00019243,2]
[350339626,1737803440532,-500.0,0.00019243,2]
[350339627,1737803440541,-700.59,0.00019243,2]
[350339628,1737803440551,-500.0,0.00019243,2]
[350339629,1737803440560,-622.58,0.00019243,2]
[350339630,1737803440569,-500.0,0.00019243,2]
[350339631,1737803440579,-500.0,0.00019243,2]
[350339632,1737803440589,-744.08,0.00019243,2]
[350339633,1737803440600,-500.0,0.00019243,2]
[350339634,1737803440617,-500.0,0.00019243,2]
[350339635,1737803440627,-618.89,0.00019243,2]
[350339636,1737803440636,-500.0,0.00019243,2]
[350339637,1737803440646,-500.0,0.00019243,2]
[350339638,1737803440655,-500.0,0.0001926,2]
[350339639,1737803440665,-572.60596787,0.00019273,2]
[350339640,1737803440676,-320.15770353,0.00019273,2]
[350339641,1737803440686,-623.51,0.00019273,2]
[350339642,1737803440698,-500.0,0.00019273,2]
[350339644,1737803440710,-500.0,0.00019273,2]
[350339646,1737803440720,-500.0,0.00019273,2]
[350339649,1737803440730,-500.0,0.00019273,2]
[350339650,1737803440741,-500.0,0.00019273,2]
[350339651,1737803440751,-431.785862,0.00019273,2]
[350339652,1737803440760,-500.0,0.00019273,2]
[350339653,1737803440769,-500.0,0.00019273,2]
[350339654,1737803440779,-500.0,0.00019273,2]
[350339655,1737803440788,-186.42,0.00019273,2]
[350339656,1737803440798,-500.0,0.00019273,2]
[350339657,1737803440807,-536.774249,0.00019273,2]
[350339658,1737803440817,-500.0,0.00019273,2]
[350339659,1737803440827,-500.0,0.00019273,2]
[350339660,1737803440837,-500.0,0.00019273,2]
[350339661,1737803440847,-500.0,0.00019273,2]
[350339662,1737803440856,-500.0,0.00019273,2]
[350339663,1737803440865,-500.0,0.00019273,2]
[350339664,1737803440875,-500.0,0.00019273,2]
[350339665,1737803440884,-500.0,0.00019273,2]
[350339666,1737803440894,-500.0,0.00019273,2]
[350339667,1737803440904,-500.0,0.00019273,2]
[350339668,1737803440914,-500.0,0.00019273,2]
[350339669,1737803440924,-500.0,0.00019273,2]
[350339670,1737803440934,-500.0,0.00019273,2]
[350339671,1737803440944,-511.7,0.00019273,2]
[350339672,1737803440955,-500.0,0.00019273,2]
[350339673,1737803440965,-637.59,0.00019273,2]
[350339674,1737803440975,-1047.2,0.00019273,2]
[350339675,1737803440985,-640.1,0.00019273,2]
[350339676,1737803440994,-581.86,0.00019273,2]
[350339677,1737803441004,-710.99,0.00019273,2]
[350339678,1737803441014,-500.0,0.00019273,2]
[350339679,1737803441024,-500.0,0.00019273,2]
[350339680,1737803441034,-500.0,0.00019273,2]
[350339681,1737803441043,-500.0,0.00019273,2]
[350339682,1737803441053,-500.0,0.00019273,2]
[350339683,1737803441063,-731.84,0.00019273,2]
[350339684,1737803441073,-909.71,0.00019273,2]
[350339685,1737803441083,-279.42,0.00019273,2]
[350339686,1737803441092,-500.0,0.00019273,2]
[350339687,1737803441102,-500.0,0.00019273,2]
[350339688,1737803441112,-564.51,0.00019273,2]
[350339689,1737803441121,-500.0,0.00019273,2]
[350339690,1737803441131,-500.0,0.00019273,2]
[350339691,1737803441140,-500.0,0.00019273,2]
[350339692,1737803441150,-500.0,0.00019273,2]
[350339693,1737803441160,-500.0,0.00019273,2]
[350339694,1737803441169,-500.0,0.00019273,2]
[350339695,1737803441179,-500.0,0.00019273,2]
[350339696,1737803441189,-500.0,0.00019273,2]
[350339697,1737803441200,-500.0,0.00019273,2]
[350339698,1737803441210,-500.0,0.00019273,2]
[350339699,1737803441219,-239.87,0.00019273,2]
[350339700,1737803441230,-573.79,0.00019273,2]
[350339701,1737803441239,-500.0,0.00019273,2]
[350339702,1737803441249,-500.0,0.00019273,2]
[350339703,1737803441259,-228.5,0.00019273,2]
[350339704,1737803441269,-500.0,0.00019273,2]
[350339705,1737803441279,-500.0,0.00019273,2]
[350339706,1737803441288,-500.0,0.00019273,2]
[350339707,1737803441298,-500.0,0.00019273,2]
[350339708,1737803441307,-500.0,0.00019273,2]
[350339709,1737803441317,-500.0,0.00019273,2]
[350339710,1737803441327,-500.0,0.00019273,2]
[350339711,1737803441337,-500.0,0.00019273,2]
[350339712,1737803441347,-500.0,0.00019273,2]
[350339713,1737803441357,-500.0,0.00019273,2]
[350339714,1737803441367,-500.0,0.00019273,2]
[350339715,1737803441376,-500.0,0.00019273,2]
[350339716,1737803441386,-692.48,0.00019273,2]
[350339717,1737803441395,-521.69,0.00019273,2]
[350339718,1737803441405,-500.0,0.00019273,2]
[350339719,1737803441415,-200.96,0.00019273,2]
[350339720,1737803441425,-500.0,0.00019273,2]
[350339721,1737803441434,-500.0,0.00019273,2]
[350339722,1737803441444,-500.0,0.00019273,2]
[350339723,1737803441454,-335.70566758,0.00019273,2]
[350339724,1737803441467,-164.29433242,0.00019273,2]
[350339725,1737803441477,-500.0,0.00019273,2]
[350339726,1737803441487,-500.0,0.00019273,2]
[350339727,1737803441496,-510.88,0.00019273,2]
[350339728,1737803441506,-500.0,0.00019273,2]
[350339729,1737803441515,-500.0,0.00019273,2]
[350339730,1737803441525,-374.02566758,0.00019273,2]
[350339731,1737803441536,-367.52433242,0.00019273,2]
[350339732,1737803441545,-500.0,0.00019273,2]
[350339733,1737803441555,-239.4919271,0.00019283,2]
[350339734,1737803441565,-1055.28249228,0.00019314,2]
[350339735,1737803441574,-150.99,0.00019339,2]
[350339736,1737803441585,-999.99,0.00019339,2]
[350339737,1737803441594,-1000.0,0.00019365,2]
[350339738,1737803441604,-500.0,0.0001938,2]
[350339739,1737803441616,-500.0,0.0001938,2]
[350339740,1737803441626,-424.93023257,0.0001938,2]
[350339741,1737803441636,-629.36694224,0.0001938,2]
[350339742,1737803441645,-500.0,0.0001938,2]
[350339743,1737803441655,-500.0,0.0001938,2]
[350339744,1737803441665,-500.0,0.0001938,2]
[350339745,1737803441674,-500.0,0.0001938,2]
[350339746,1737803441685,-500.0,0.0001938,2]
[350339747,1737803441696,-558.26,0.0001938,2]
[350339748,1737803441707,-500.0,0.0001938,2]
[350339749,1737803441716,-500.0,0.0001938,2]
[350339750,1737803441726,-552.92,0.0001938,2]
[350339751,1737803441735,-500.0,0.0001938,2]
[350339752,1737803441745,-500.0,0.0001938,2]
[350339753,1737803441754,-500.0,0.0001938,2]
[350339754,1737803441763,-371.31433236,0.0001938,2]
[350339755,1737803441772,-500.0,0.0001938,2]
[350339756,1737803441782,-500.0,0.0001938,2]
[350339757,1737803441791,-601.64,0.0001938,2]
[350339758,1737803441800,-500.0,0.0001938,2]
[350339759,1737803441810,-700.59,0.0001938,2]
[350339760,1737803441819,-500.0,0.0001938,2]
[350339761,1737803441830,-622.58,0.0001938,2]
[350339762,1737803441839,-461.63019821,0.0001938,2]
[350339763,1737803441848,-642.38,0.0001938,2]
[350339764,1737803441858,-744.08,0.0001938,2]
[350339765,1737803441867,-500.0,0.0001938,2]
[350339766,1737803441877,-187.25,0.0001938,2]
[350339767,1737803441887,-500.0,0.0001938,2]
[350339768,1737803441896,-500.0,0.0001938,2]
[350339769,1737803441906,-3216.28662144,0.00019385,2]
[350339770,1737803441915,-3216.28662144,0.00019389,2]
[350339771,1737803441924,-150.0,0.00019404,2]
[350339772,1737803441933,-3216.28662144,0.00019409,2]
[350339773,1737803441943,-500.0,0.0001941,2]
[350339774,1737803441953,-534.45,0.0001941,2]
[350339775,1737803441963,-416.55196854,0.0001941,2]
[350339776,1737803441973,-543.48,0.0001941,2]
[350339777,1737803441982,-500.0,0.0001941,2]
[350339778,1737803441991,-386.85314983,0.0001941,2]
[350339779,1737803442001,-420.99,0.0001941,2]
[350339780,1737803442011,-177.73,0.0001941,2]
[350339781,1737803442020,-500.0,0.0001941,2]
[350339782,1737803442030,-500.0,0.0001941,2]
[350339783,1737803442039,-511.7,0.0001941,2]
[350339784,1737803442049,-500.0,0.0001941,2]
[350339785,1737803442058,-637.59,0.0001941,2]
[350339786,1737803442068,-1047.2,0.0001941,2]
[350339787,1737803442077,-466.37456013,0.0001941,2]
[350339788,1737803442090,-173.72543987,0.0001941,2]
[350339789,1737803442099,-581.86,0.0001941,2]
[350339790,1737803442108,-567.41456013,0.0001941,2]
[350339791,1737803442120,-143.57543987,0.0001941,2]
[350339792,1737803442129,-479.44455913,0.0001941,2]
[350339793,1737803442140,-20.55544087,0.0001941,2]
[350339794,1737803442149,-500.0,0.0001941,2]
[350339795,1737803442159,-500.0,0.0001941,2]
[350339796,1737803442168,-500.0,0.0001941,2]
[350339797,1737803442178,-542.44455913,0.0001941,2]
[350339798,1737803442190,-189.39544087,0.0001941,2]
[350339799,1737803442200,-829.20455913,0.0001941,2]
[350339800,1737803442211,-80.50544087,0.0001941,2]
[350339801,1737803442221,-500.0,0.0001941,2]
[350339802,1737803442231,-500.0,0.0001941,2]
[350339803,1737803442240,-409.49696348,0.0001941,2]
[350339804,1737803442260,-500.0,0.00018969,2]
[350339805,1737803442270,-155.01303652,0.0001941,2]
[350339806,1737803442279,-500.0,0.0001941,2]
[350339807,1737803442288,-500.0,0.0001941,2]
[350339808,1737803442298,-500.0,0.0001941,2]
[350339809,1737803442308,-500.0,0.0001941,2]
[350339810,1737803442317,-500.0,0.0001941,2]
[350339811,1737803442326,-500.0,0.0001941,2]
[350339812,1737803442336,-500.0,0.0001941,2]
[350339813,1737803442346,-500.0,0.0001941,2]
[350339814,1737803442356,-406.37179395,0.0001941,2]
[350339815,1737803442366,-573.79,0.0001941,2]
[350339816,1737803442376,-500.0,0.0001941,2]
[350339817,1737803442385,-500.0,0.0001941,2]
[350339818,1737803442395,-500.0,0.0001941,2]
[350339819,1737803442404,-500.0,0.0001941,2]
[350339820,1737803442415,-500.0,0.0001941,2]
[350339821,1737803442424,-500.0,0.0001941,2]
[350339822,1737803442434,-500.0,0.0001941,2]
[350339823,1737803442443,-500.0,0.0001941,2]
[350339824,1737803442453,-500.0,0.0001941,2]
[350339825,1737803442462,-500.0,0.0001941,2]
[350339826,1737803442471,-500.0,0.0001941,2]
[350339827,1737803442481,-500.0,0.0001941,2]
[350339828,1737803442490,-500.0,0.0001941,2]
[350339829,1737803442500,-500.0,0.0001941,2]
[350339830,1737803442510,-692.48,0.0001941,2]
[350339831,1737803442519,-521.69,0.0001941,2]
[350339832,1737803442528,-500.0,0.0001941,2]
[350339833,1737803442538,-500.0,0.0001941,2]
[350339834,1737803442547,-500.0,0.0001941,2]
[350339835,1737803442558,-500.0,0.0001941,2]
[350339836,1737803442568,-500.0,0.0001941,2]
[350339837,1737803442578,-500.0,0.0001941,2]
[350339838,1737803442588,-500.0,0.0001941,2]
[350339839,1737803442599,-510.88,0.0001941,2]
[350339840,1737803442608,-500.0,0.0001941,2]
[350339841,1737803442621,-500.0,0.0001941,2]
[350339842,1737803442630,-741.55,0.0001941,2]
[350339843,1737803442640,-500.0,0.0001941,2]
[350339844,1737803442651,-1055.28249228,0.00019417,2]
[350339845,1737803442662,-541.91,0.0001942,2]
[350339846,1737803442673,-1714.70260512,0.00019443,2]
[350339849,1737803442835,-304.33735203,0.00019443,2]
[350339850,1737803442846,-714.89795814,0.00019443,2]
[350339851,1737803442858,-482.34870615,0.00019443,2]
[350339852,1737803442868,-150.0,0.00019448,2]
[350339853,1737803442877,-3216.28662144,0.00019462,2]
[350339854,1737803442887,-400.0,0.000195,7]
[350339855,1737803442896,-253.83,0.00019517,2]
[350339856,1737803442905,-184.52212299,0.00019517,2]
[350339857,1737803442914,-500.0,0.00019517,2]
[350339858,1737803442925,-500.0,0.00019517,2]
[350339859,1737803442934,-500.0,0.00019517,2]
[350339860,1737803442944,-500.0,0.00019517,2]
[350339861,1737803442953,-558.26,0.00019517,2]
[350339862,1737803442963,-500.0,0.00019517,2]
[350339863,1737803442972,-611.72,0.00019517,2]
[350339864,1737803442982,-552.92,0.00019517,2]
[350339865,1737803442992,-500.0,0.00019517,2]
[350339866,1737803443001,-500.0,0.00019517,2]
[350339867,1737803443011,-500.0,0.00019517,2]
[350339868,1737803443020,-500.0,0.00019517,2]
[350339869,1737803443029,-500.0,0.00019517,2]
[350339870,1737803443039,-601.64,0.00019517,2]
[350339871,1737803443047,-500.0,0.00019517,2]
[350339872,1737803443057,-700.59,0.00019517,2]
[350339873,1737803443066,-500.0,0.00019517,2]
[350339874,1737803443075,-622.58,0.00019517,2]
[350339875,1737803443084,-744.08,0.00019517,2]
[350339876,1737803443093,-500.0,0.00019517,2]
[350339877,1737803443103,-500.0,0.00019517,2]
[350339878,1737803443112,-500.0,0.00019517,2]
[350339879,1737803443122,-150.0,0.00019518,2]
[350339880,1737803443131,-1055.28249228,0.00019521,2]
[350339881,1737803443140,-239.49192706,0.00019545,2]
[350339882,1737803443150,-500.0,0.00019547,2]
[350339883,1737803443160,-500.0,0.00019547,2]
[350339884,1737803443169,-248.39624997,0.00019547,2]
[350339885,1737803443179,-360.35055237,0.00019547,2]
[350339886,1737803443189,-511.7,0.00019547,2]
[350339887,1737803443199,-500.0,0.00019547,2]
[350339888,1737803443208,-637.59,0.00019547,2]
[350339889,1737803443218,-1047.2,0.00019547,2]
[350339890,1737803443228,-640.1,0.00019547,2]
[350339891,1737803443237,-581.86,0.00019547,2]
[350339892,1737803443247,-710.99,0.00019547,2]
[350339893,1737803443256,-500.0,0.00019547,2]
[350339894,1737803443265,-500.0,0.00019547,2]
[350339895,1737803443274,-500.0,0.00019547,2]
[350339896,1737803443284,-500.0,0.00019547,2]
[350339897,1737803443294,-731.84,0.00019547,2]
[350339898,1737803443304,-909.71,0.00019547,2]
[350339899,1737803443313,-500.0,0.00019547,2]
[350339900,1737803443323,-500.0,0.00019547,2]
[350339901,1737803443332,-564.51,0.00019547,2]
[350339902,1737803443342,-500.0,0.00019547,2]
[350339903,1737803443352,-318.59888782,0.00019547,2]
[350339905,1737803443369,-1029.45525008,0.00018978,2]
[350339915,1737803443467,-76.54474992,0.00018978,2]
[350339916,1737803443476,-150.0,0.00018978,2]
[350339917,1737803443486,-500.0,0.00019106,2]
[350339918,1737803443495,-181.40111218,0.00019547,2]
[350339919,1737803443505,-500.0,0.00019547,2]
[350339920,1737803443514,-500.0,0.00019547,2]
[350339921,1737803443524,-500.0,0.00019547,2]
[350339922,1737803443533,-500.0,0.00019547,2]
[350339923,1737803443543,-188.87618648,0.00019547,2]
[350339924,1737803443552,-573.79,0.00019547,2]
[350339925,1737803443562,-500.0,0.00019547,2]
[350339926,1737803443572,-500.0,0.00019547,2]
[350339927,1737803443581,-500.0,0.00019547,2]
[350339928,1737803443591,-500.0,0.00019547,2]
[350339929,1737803443600,-382.17627858,0.00019547,2]
[350339930,1737803443627,-117.82372142,0.00019547,2]
[350339931,1737803443636,-500.0,0.00019547,2]
[350339932,1737803443646,-615.0,0.00019547,2]
[350339933,1737803443656,-21.85692251,0.00019547,2]
[350339934,1737803443734,-478.14307749,0.00019547,2]
[350339935,1737803443743,-144.01191551,0.00019547,2]
[350339936,1737803443754,-355.98808449,0.00019547,2]
[350339937,1737803443764,-500.0,0.00019547,2]
[350339938,1737803443773,-194.35444967,0.00019547,2]
[350339939,1737803443784,-305.64555033,0.00019547,2]
[350339940,1737803443793,-53.0280998,0.00019547,2]
[350339941,1737803443808,-446.9719002,0.00019547,2]
[350339942,1737803443817,-500.0,0.00019547,2]
[350339943,1737803443826,-500.0,0.00019547,2]
[350339944,1737803443836,-692.48,0.00019547,2]
[350339945,1737803443845,-521.69,0.00019547,2]
[350339946,1737803443854,-500.0,0.00019547,2]
[350339947,1737803443863,-500.0,0.00019547,2]
[350339948,1737803443872,-500.0,0.00019547,2]
[350339949,1737803443882,-500.0,0.00019547,2]
[350339950,1737803443891,-500.0,0.00019547,2]
[350339951,1737803443900,-510.88,0.00019547,2]
[350339952,1737803443910,-302.70125241,0.00019547,2]
[350339956,1737803446041,-500.0,0.00018969,2]
[350339957,1737803446051,-427.33260867,0.00018969,2]
[350339958,1737803446063,-72.66739133,0.00018969,2]
[350339959,1737803446072,-150.0,0.00018978,2]
[350339960,1737803446081,-206.85582883,0.00019106,2]
[350339961,1737803446096,-293.14417117,0.00019106,2]
[350339962,1737803446106,-500.0,0.00019243,2]
[350339963,1737803446116,-251.0,0.00019486,2]
[350339964,1737803446125,-438.84874759,0.00019547,2]
[350339965,1737803446135,-160.14020557,0.00019547,2]
[350339966,1737803446152,-500.0,0.0001938,2]
[350339967,1737803446162,-339.85979443,0.00019547,2]
[350339968,1737803446171,-116.17474001,0.00019599,2]
[350339969,1737803446259,-348.547565,0.00019599,2]
[350339970,1737803446314,-1426.27769499,0.00019599,2]
[350339971,1737803446323,-869.618594,0.00019599,2]
[350339972,1737803446332,-1060.92657387,0.000196,2]
[350339973,1737803446341,-1085.45112248,0.000196,2]
[350339974,1737803446350,-800.0,0.000196,7]
[350339975,1737803446359,-1055.28249228,0.00019624,2]
[350339976,1737803446368,-438.64,0.00019627,2]
[350339977,1737803446378,-773.39,0.00019627,2]
[350339978,1737803446387,-150.0,0.00019634,2]
[350339979,1737803446396,-558.26,0.00019654,2]
[350339980,1737803446405,-552.92,0.00019654,2]
[350339981,1737803446414,-500.0,0.00019654,2]
[350339982,1737803446423,-500.0,0.00019654,2]
[350339983,1737803446433,-500.0,0.00019654,2]
[350339984,1737803446442,-287.77352489,0.00019654,2]
[350339985,1737803446452,-500.0,0.00019654,2]
[350339986,1737803446461,-601.64,0.00019654,2]
[350339987,1737803446471,-500.0,0.00019654,2]
[350339988,1737803446481,-700.59,0.00019654,2]
[350339989,1737803446491,-500.0,0.00019654,2]
[350339990,1737803446500,-622.58,0.00019654,2]
[350339991,1737803446509,-744.08,0.00019654,2]
[350339992,1737803446519,-500.0,0.00019654,2]
[350339993,1737803446528,-500.0,0.00019654,2]
[350339995,1737803446537,-500.0,0.00019654,2]
[350339997,1737803446547,-500.0,0.00019684,2]
[350339999,1737803446556,-198.54902898,0.00019684,2]
[350340001,1737803446565,-511.7,0.00019684,2]
[350340002,1737803446575,-500.0,0.00019684,2]
[350340003,1737803446584,-637.59,0.00019684,2]
[350340004,1737803446593,-1047.2,0.00019684,2]
[350340005,1737803446603,-640.1,0.00019684,2]
[350340006,1737803446612,-710.99,0.00019684,2]
[350340007,1737803446625,-500.0,0.00019684,2]
[350340008,1737803446635,-500.0,0.00019684,2]
[350340009,1737803446644,-500.0,0.00019684,2]
[350340010,1737803446655,-500.0,0.00019684,2]
[350340011,1737803446666,-731.84,0.00019684,2]
[350340012,1737803446675,-909.71,0.00019684,2]
[350340013,1737803446684,-500.0,0.00019684,2]
[350340014,1737803446694,-500.0,0.00019684,2]
[350340015,1737803446704,-564.51,0.00019684,2]
[350340016,1737803446714,-500.0,0.00019684,2]
[350340017,1737803446723,-500.0,0.00019684,2]
[350340018,1737803446733,-500.0,0.00019684,2]
[350340019,1737803446743,-341.99347188,0.00019684,2]
[350340020,1737803446752,-500.0,0.00019684,2]
[350340021,1737803446764,-500.0,0.00019684,2]
[350340022,1737803446773,-573.79,0.00019684,2]
[350340023,1737803446784,-500.0,0.00019684,2]
[350340024,1737803446795,-500.0,0.00019684,2]
[350340025,1737803446804,-500.0,0.00019684,2]
[350340026,1737803446814,-500.0,0.00019684,2]
[350340027,1737803446823,-500.0,0.00019684,2]
[350340028,1737803446833,-500.0,0.00019684,2]
[350340029,1737803446842,-500.0,0.00019684,2]
[350340030,1737803446852,-500.0,0.00019684,2]
[350340031,1737803446862,-500.0,0.00019684,2]
[350340032,1737803446872,-500.0,0.00019684,2]
[350340033,1737803446881,-189.45,0.00019684,2]
[350340034,1737803446890,-692.48,0.00019684,2]
[350340035,1737803446901,-521.69,0.00019684,2]
[350340036,1737803446911,-500.0,0.00019684,2]
[350340037,1737803446920,-500.0,0.00019684,2]
[350340038,1737803446929,-500.0,0.00019684,2]
[350340039,1737803446938,-500.0,0.00019684,2]
[350340040,1737803446947,-500.0,0.00019684,2]
[350340041,1737803446957,-510.88,0.00019684,2]
[350340042,1737803446966,-741.55,0.00019684,2]
[350340043,1737803446975,-500.0,0.00019684,2]
[350340044,1737803446985,-150.0,0.00019687,2]
[350340045,1737803446994,-1000.0,0.000197,2]
[350340046,1737803447003,-1200.0,0.000197,7]
[350340047,1737803447012,-150.0,0.00019723,2]
[350340048,1737803447021,-150.0,0.00019724,2]
[350340049,1737803447030,-1055.28249228,0.00019728,2]
[350340050,1737803447040,-558.26,0.00019791,2]
[350340051,1737803447049,-552.92,0.00019791,2]
[350340052,1737803447058,-500.0,0.00019791,2]
[350340053,1737803447067,-500.0,0.00019791,2]
[350340054,1737803447077,-500.0,0.00019791,2]
[350340055,1737803447087,-500.0,0.00019791,2]
[350340056,1737803447096,-601.64,0.00019791,2]
[350340057,1737803447105,-500.0,0.00019791,2]
[350340058,1737803447114,-700.59,0.00019791,2]
[350340059,1737803447124,-500.0,0.00019791,2]
[350340060,1737803447133,-622.58,0.00019791,2]
[350340061,1737803447143,-744.08,0.00019791,2]
[350340062,1737803447151,-500.0,0.00019791,2]
[350340063,1737803447161,-500.0,0.00019791,2]
[350340064,1737803447170,-365.20081621,0.00019791,2]
[350340065,1737803447179,-150.0,0.00019798,2]
[350340066,1737803447188,-169.01650556,0.000198,2]